fUSD/lending_fUSD_20240327
["ID","MTS","AMOUNT","RATE_DAILY","PERIOD"]
[320722620,1711534962834,-505.45463998,0.00054794,120]
[320722621,1711534962857,-500.0,0.00054794,120]
[320722622,1711534962880,-500.0,0.00054794,120]
[320722623,1711534962903,-500.0,0.00054794,120]
[320722624,1711534962926,-500.0,0.00054794,120]
[320722625,1711534962949,-1608.3,0.00054794,120]
[320722626,1711534962973,-500.0,0.00054794,120]
[320722627,1711534962997,-500.0,0.00054794,120]
[320722628,1711534963022,-17906.59,0.00054794,120]
[320722629,1711534963049,-500.0,0.00054794,120]
[320722630,1711534963075,-900.42,0.00054794,120]
[320722631,1711534963101,-18236.17,0.00054794,120]
[320722632,1711534963125,-500.0,0.00054794,120]
[320722633,1711534963149,-311.26468857,0.00054794,120]
[320722634,1711534963173,-4740.83,0.00054794,120]
[320722635,1711534963197,-7144.33,0.00054794,120]
[320722636,1711534963220,-5471.51,0.00054794,120]
[320722637,1711534963243,-500.0,0.00054794,120]
[320722638,1711534963266,-500.0,0.00054794,120]
[320722639,1711534963291,-500.0,0.00054794,120]
[320722640,1711534963315,-3942.04,0.00054794,120]
[320722641,1711534963337,-500.0,0.00054794,120]
[320722642,1711534963361,-500.0,0.00054794,120]
[320722643,1711534963384,-500.0,0.00054794,120]
[320722644,1711534963408,-956.85,0.00054794,120]
[320722645,1711534963433,-151.0,0.00054794,30]
[320722646,1711534963458,-500.0,0.00054794,120]
[320722647,1711534963481,-575.81,0.00054794,120]
[320722648,1711534963510,-2457.99,0.00054794,120]
[320722649,1711534963535,-500.0,0.00054794,120]
[320722650,1711534963560,-500.0,0.00054794,120]
[320722651,1711534963583,-500.0,0.00054794,120]
[320722652,1711534963607,-6609.83,0.00054794,120]
[320722653,1711534963632,-500.0,0.00054794,120]
[320722654,1711534963656,-500.0,0.00054794,120]
[320722655,1711534963680,-500.0,0.00054794,120]
[320722656,1711534963705,-1183.88,0.00054794,120]
[320722657,1711534963730,-988.46,0.00054794,120]
[320722658,1711534963755,-500.0,0.00054794,120]
[320722659,1711534963780,-1812.6,0.00054794,120]
[320722660,1711534963805,-500.0,0.00054794,120]
[320722661,1711534963830,-1000.0,0.00054794,120]
[320722662,1711534963855,-1000.0,0.00054794,120]
[320722663,1711534963880,-500.0,0.00054794,120]
[320722664,1711534963904,-1000.0,0.00054794,120]
[320722665,1711534963928,-510.87227896,0.00054794,120]
[320722666,1711534963951,-1000.0,0.00054794,120]
[320722667,1711534963978,-504.22494631,0.00054794,120]
[320722668,1711534964001,-1000.0,0.00054794,120]
[320722669,1711534964025,-2133.44,0.00054794,120]
[320722670,1711534964050,-1000.0,0.00054794,120]
[320722671,1711534964075,-756.73615809,0.00054794,120]
[320722672,1711534964099,-500.0,0.00054794,120]
[320722673,1711534964122,-663.65,0.00054794,120]
[320722674,1711534964146,-500.0,0.00054794,120]
[320722675,1711534964175,-7253.38,0.00054794,120]
[320722676,1711534964199,-5236.26,0.00054794,120]
[320722677,1711534964223,-500.0,0.00054794,120]
[320722678,1711534964247,-500.0,0.00054794,120]
[320722679,1711534964272,-3527.42,0.00054794,120]
[320722680,1711534964298,-1004.03,0.00054794,120]
[320722681,1711534964323,-500.0,0.00054794,120]
[320722682,1711534964347,-743.19,0.00054794,120]
[320722683,1711534964371,-495.64243937,0.00054794,120]
[320722684,1711534964395,-500.0,0.00054794,120]
[320722685,1711534964419,-672.63,0.00054794,120]
[320722686,1711534964448,-617.103691,0.00054794,120]
[320722687,1711534964473,-509.03370832,0.00054794,120]
[320722688,1711534964498,-607.4,0.00054794,120]
[320722689,1711534964522,-559.91,0.00054794,120]
[320722690,1711534964549,-2481.96,0.00054794,120]
[320722691,1711534964574,-1963.86,0.00054794,120]
[320722692,1711534964597,-500.0,0.00054794,120]
[320722693,1711534964621,-1794.95,0.00054794,120]
[320722694,1711534964645,-617.103691,0.00054794,120]
[320722695,1711534964669,-500.0,0.00054794,120]
[320722696,1711534964693,-931.2,0.00054794,120]
[320722697,1711534964717,-500.0,0.00054794,120]
[320722698,1711534964741,-151.0,0.00054794,120]
[320722699,1711534964765,-606.32,0.00054794,120]
[320722700,1711534964795,-7120.28078775,0.00054794,120]
[320722701,1711535102071,426.06227704,0.00039496,30]
[320722702,1711535112922,283.0,0.00039496,120]
[320722703,1711535207228,150.0,0.00039496,30]
[320722704,1711535207564,250.0,0.00039496,30]
[320722705,1711535227333,156.416567,0.00039496,30]
[320722706,1711535249104,-155.0,0.00019898,2]
[320722707,1711535249127,-199.1757881,0.00019899,2]
[320722708,1711535249147,-150.07189346,0.000199,2]
[320722709,1711535249168,-550.10279735,0.0002,2]
[320722710,1711535365256,597.3078742,0.00039496,60]
[320722725,1711535401899,426.06227704,0.00039681,30]
[320722726,1711535402591,170.51,0.00016712,2]
[320722744,1711535431682,-500.0,0.00019995,2]
[320722745,1711535431692,-548.84635004,0.00019996,2]
[320722746,1711535431701,-1235.44561692,0.00019997,2]
[320722747,1711535431711,-235.35674052,0.00019997,2]
[320722748,1711535431722,-12758.04759302,0.00019997,2]
[320722749,1711535431731,-3066.08279134,0.00019998,2]
[320722750,1711535431744,-150.0,0.00019998,2]
[320722751,1711535431755,-300.0,0.00019998,2]
[320722752,1711535431765,-1445.69720265,0.0002,2]
[320722753,1711535431775,-210.0,0.00021998,2]
[320722754,1711535431785,-155.0,0.00023091,2]
[320722755,1711535431794,-1302.0,0.000238,2]
[320722756,1711535431804,-176.19,0.00027373,2]
[320722757,1711535431814,-154.78058151,0.00027897,2]
[320722758,1711535431823,-499.99,0.00027897,2]
[320722759,1711535431833,-2227.02,0.00027897,2]
[320722761,1711535431843,-158.01197033,0.00027997,2]
[320722763,1711535431852,-150.99,0.00028,2]
[320722765,1711535431862,-1020.26297848,0.00028,10]
[320722767,1711535431872,-838.14,0.00029,2]
[320722769,1711535431882,-559.30829187,0.00029,2]
[320722771,1711535431891,-2535.89247643,0.0002952,2]
[320722773,1711535431900,-154.78058138,0.00029721,2]
[320722775,1711535431910,-677.45508372,0.0003,4]
[320722777,1711535431919,-9999.99,0.0003,2]
[320722779,1711535431928,-350.0,0.00031,3]
[320722782,1711535431938,-150.99,0.00031,2]
[320722784,1711535431950,-712.61418707,0.00031147,4]
[320722786,1711535431959,-156.03890616,0.00031485,4]
[320722788,1711535431970,-154.78058138,0.00031545,2]
[320722790,1711535431980,-540.41,0.00032424,2]
[320722792,1711535431989,-311.7,0.00032763,10]
[320722793,1711535431999,-547.58,0.00032822,2]
[320722794,1711535432009,-4511.4,0.0003286,2]
[320722795,1711535432024,-3249.68,0.00032874,2]
[320722796,1711535432034,-400.0,0.00033,3]
[320722797,1711535432045,-154.78058138,0.00033368,2]
[320722798,1711535432054,-503.96,0.00033486,2]
[320722799,1711535432063,-311.7,0.00033566,10]
[320722800,1711535432073,-2492.97,0.00033741,2]
[320722801,1711535432082,-1643.23,0.00033848,2]
[320722802,1711535432092,-193.4,0.0003413,2]
[320722803,1711535432101,-1338.42,0.00034156,2]
[320722804,1711535432111,-186.19,0.00034232,120]
[320722805,1711535432124,-250.0,0.00034245,110]
[320722806,1711535432134,-250.0,0.00034294,2]
[320722807,1711535432144,-311.7,0.00034369,10]
[320722808,1711535432155,-422.95,0.00034464,15]
[320722809,1711535432166,-150.0,0.00034464,2]
[320722810,1711535432175,-720.04,0.00034465,2]
[320722811,1711535432185,-500.0,0.00034474,2]
[320722812,1711535432195,-720.04,0.00034474,2]
[320722813,1711535432204,-1615.27,0.00034481,2]
[320722814,1711535432214,-720.04,0.00034483,2]
[320722815,1711535432225,-720.04,0.00034492,2]
[320722816,1711535432235,-240.02,0.00034496,2]
[320722817,1711535432244,-500.0,0.00034498,2]
[320722818,1711535432254,-720.04,0.00034501,2]
[320722819,1711535432263,-720.04,0.0003451,2]
[320722820,1711535432273,-720.04,0.00034519,2]
[320722821,1711535432282,-720.04,0.00034528,2]
[320722822,1711535432293,-720.04,0.00034538,2]
[320722823,1711535432303,-720.04,0.00034547,2]
[320722824,1711535432312,-720.04,0.00034556,2]
[320722825,1711535432322,-720.04,0.00034565,2]
[320722826,1711535432332,-720.04,0.00034574,2]
[320722827,1711535432341,-720.04,0.00034583,2]
[320722828,1711535432350,-720.04,0.00034592,2]
[320722829,1711535432360,-720.04,0.00034601,2]
[320722830,1711535432370,-441.26794536,0.00034608,4]
[320722831,1711535432379,-155.0,0.00034609,4]
[320722832,1711535432389,-598.63615172,0.00034609,4]
[320722833,1711535432399,-720.04,0.0003461,2]
[320722834,1711535432408,-720.04,0.00034619,2]
[320722835,1711535432418,-720.04,0.00034628,2]
[320722836,1711535432427,-720.04,0.00034637,2]
[320722837,1711535432437,-540.41,0.00034688,2]
[320722838,1711535432446,-350.35633815,0.00034997,4]
[320722839,1711535432455,-6122.51139352,0.00034998,4]
[320722840,1711535432465,-300.0,0.00034999,2]
[320722841,1711535432475,-300.0,0.00034999,2]
[320722842,1711535432485,-300.0,0.00034999,2]
[320722843,1711535432495,-300.0,0.00034999,2]
[320722844,1711535432504,-300.0,0.00034999,2]
[320722845,1711535432513,-300.0,0.00034999,2]
[320722846,1711535432523,-300.0,0.00034999,2]
[320722847,1711535432532,-300.0,0.00034999,2]
[320722848,1711535432542,-377.83440202,0.00034999,2]
[320722849,1711535432551,-450.0,0.00035,3]
[320722850,1711535432561,-7349.62406363,0.00035,4]
[320722851,1711535432576,-699.60708,0.00035,4]
[320722852,1711535432602,-941.66406681,0.00035,4]
[320722853,1711535432614,-846.08694448,0.00035,4]
[320722854,1711535432627,-905.0499995,0.00035,4]
[320722855,1711535432639,-29130.42268882,0.00035,4]
[320722856,1711535432676,-1094.60078796,0.00035,4]
[320722857,1711535432689,-32490.69180606,0.00035,4]
[320722858,1711535432715,-466.33962102,0.00034999,7]
[320722859,1711535432726,-324.10000261,0.00035,4]
[320722860,1711535432738,-1099.33301702,0.00035,4]
[320722861,1711535432751,-568.53411359,0.00035,4]
[320722862,1711535432764,-4775.97614724,0.00035,4]
[320722863,1711535432776,-5735.12606642,0.00035,4]
[320722864,1711535432788,-39095.88095225,0.00035,4]
[320722865,1711535432801,-1188.16700002,0.00035,4]
[320722866,1711535432812,-8982.82997581,0.00035,4]
[320722867,1711535432829,-455.94522447,0.00035,4]
[320722868,1711535432841,-398.67584007,0.00035,4]
[320722869,1711535432853,-1129.24535294,0.00035,4]
[320722870,1711535432874,-857.80460419,0.00035,4]
[320722871,1711535432886,-470.66422877,0.00035,4]
[320722872,1711535432898,-1121.04454154,0.00035,4]
[320722873,1711535432910,-821.59785975,0.00035,4]
[320722874,1711535432952,-817.67329241,0.00035,4]
[320722877,1711535437528,-0.00216844,0.00035,4]
[320722878,1711535437540,-2096030.63717791,0.00035,4]
[320722879,1711535437550,-560.05174376,0.00035072,2]
[320722880,1711535437559,-311.7,0.00035171,10]
[320722881,1711535437569,-154.78058138,0.00035192,2]
[320722882,1711535437579,-172.49,0.00035272,2]
[320722883,1711535437589,-156.01214547,0.00035422,4]
[320722884,1711535437600,-223.86,0.00035615,2]
[320722885,1711535437610,-311.7,0.00035974,10]
[320722886,1711535437620,-540.41,0.00036951,2]
[320722887,1711535437631,-223.86,0.00036985,2]
[320722888,1711535437642,-800.0,0.00036986,2]
[320722889,1711535437654,-500.0,0.00037,3]
[320722890,1711535437665,-154.78058138,0.00037016,2]
[320722891,1711535437674,-176.96843755,0.00037104,10]
[320722892,1711535437684,-5073.64995367,0.00037104,10]
[320722893,1711535437695,-422.95,0.00037204,15]
[320722894,1711535437704,-2505.073525,0.000373,29]
[320722895,1711535437713,-560.05174371,0.00037317,2]
[320722896,1711535437727,-1500.0,0.000378,29]
[320722897,1711535437738,-1000.0,0.00038136,30]
[320722898,1711535437747,-1000.0,0.00038136,30]
[320722899,1711535437757,-1500.0,0.000383,29]
[320722900,1711535437767,-7754.62,0.00038356,60]
[320722901,1711535437777,-1500.0,0.000388,29]
[320722902,1711535437788,-154.78058138,0.0003884,2]
[320722903,1711535437798,-1237.761,0.00038949,2]
[320722904,1711535437808,-5073.64995356,0.00039052,12]
[320722905,1711535437818,-150.0,0.00039106,120]
[320722906,1711535437828,-540.41,0.00039215,2]
[320722907,1711535437838,-155.0,0.00039257,4]
[320722908,1711535437848,-199.7947513,0.00039257,4]
[320722909,1711535437859,-152.38573111,0.00039258,3]
[320722910,1711535437871,-155.94263348,0.00039258,2]
[320722911,1711535437881,-202.72757147,0.00039258,11]
[320722912,1711535437891,-2500.0,0.00039258,2]
[320722913,1711535437902,-9908.02318288,0.00039259,2]
[320722914,1711535437912,-7046.86535212,0.00039259,2]
[320722915,1711535437922,-1500.0,0.000393,29]
[320722916,1711535437933,-251.3,0.00039338,15]
[320722917,1711535437944,-150.5,0.00039348,15]
[320722918,1711535437954,-704.60565098,0.00039356,15]
[320722919,1711535437964,-155.59850934,0.00039356,4]
[320722920,1711535437976,-155.0,0.00039356,4]
[320722921,1711535437987,-1054.33421271,0.00039356,4]
[320722922,1711535437996,-205.23806172,0.00039356,4]
[320722923,1711535438006,-155.0,0.00039356,4]
[320722924,1711535438016,-1039.8118,0.00039356,4]
[320722925,1711535438028,-262.26705623,0.00039356,4]
[320722926,1711535438039,-3044.32575757,0.00039356,15]
[320722927,1711535438049,-854.63911886,0.00039356,5]
[320722928,1711535438059,-590.90258329,0.00039356,2]
[320722929,1711535438068,-1248.6644958,0.00039356,120]
[320722930,1711535438077,-599.01425648,0.00039356,4]
[320722931,1711535438087,-155.0,0.00039356,2]
[320722932,1711535438095,-1756.57153444,0.00039356,4]
[320722933,1711535438105,-680.06373145,0.00039356,4]
[320722934,1711535438115,-3845.29565069,0.00039356,2]
[320722935,1711535438129,-5233.67240268,0.00039356,4]
[320722936,1711535438140,-5318.70302221,0.00039357,4]
[320722937,1711535438150,-5913.72179436,0.00039359,4]
[320722938,1711535438161,-20395.44474219,0.0003936,4]
[320722939,1711535438170,-621.3816996,0.0003936,10]
[320722940,1711535438180,-155.01,0.000394,7]
[320722941,1711535438191,-592.53426233,0.00039496,17]
[320722942,1711535438202,-675.43651637,0.00039496,4]
[320722943,1711535438213,-2957.62674015,0.00039496,4]
[320722944,1711535438224,-155.0,0.00039496,2]
[320722945,1711535438235,-240.21091585,0.00039496,2]
[320722946,1711535438244,-1260.77753696,0.00039496,4]
[320722947,1711535438254,-396.9070002,0.00039496,2]
[320722948,1711535438263,-560.05174371,0.00039562,2]
[320722949,1711535438273,-162.76436381,0.00039681,10]
[320722950,1711535438282,-1022.0,0.00039849,2]
[320722951,1711535438292,-422.95,0.00039944,15]
[320722952,1711535438301,-7937.94912886,0.0004,4]
[320722953,1711535438311,-1877.47970494,0.0004,30]
[320722954,1711535438320,-4753.15701994,0.0004,4]
[320722955,1711535438331,-95370.3974185,0.0004,2]
[320722956,1711535438341,-5743.01202704,0.0004,4]
[320722957,1711535438351,-160.0,0.00040458,120]
[320722958,1711535438362,-500.0,0.00040476,2]
[320722959,1711535438371,-1000.0,0.00040508,2]
[320722960,1711535438381,-467.86,0.00040509,2]
[320722961,1711535438390,-1000.0,0.000406,15]
[320722962,1711535438400,-200.0,0.00040613,2]
[320722963,1711535438410,-1284.23,0.0004063,2]
[320722964,1711535438421,-200.0,0.0004063,2]
[320722965,1711535438431,-154.78058138,0.00040664,2]
[320722966,1711535438441,-1000.0,0.000409,15]
[320722967,1711535438452,-5073.64995356,0.00041,15]
[320722968,1711535438463,-7841.77272824,0.00041,4]
[320722969,1711535438474,-387.55,0.00041,7]
[320722970,1711535438483,-1500.0,0.00041096,120]
[320722971,1711535438492,-183.0,0.00041096,2]
[320722972,1711535438501,-7046.86535212,0.00041248,2]
[320722973,1711535438510,-9908.0231828,0.00041339,2]
[320722974,1711535438520,-540.41,0.00041479,2]
[320722975,1711535438529,-560.05174371,0.00041807,2]
[320722976,1711535438540,-154.78058138,0.00042487,2]
[320722977,1711535438549,-422.95,0.00042683,15]
[320722978,1711535438558,-178.09,0.00042843,2]
[320722979,1711535438568,-23900.0,0.00042879,2]
[320722980,1711535438578,-8632.23,0.00042882,2]
[320722981,1711535438587,-165.34,0.000429,7]
[320722982,1711535438597,-5073.64995356,0.00042947,17]
[320722983,1711535438606,-7046.86535212,0.00043237,2]
[320722984,1711535438618,-209.25,0.00043401,2]
[320722985,1711535438628,-250.0,0.00043417,2]
[320722986,1711535438638,-9908.0231828,0.0004342,2]
[320722987,1711535438647,-1094.2863,0.00043483,2]
[320722988,1711535438658,-200.0,0.00043709,2]
[320722989,1711535438667,-540.41,0.00043743,2]
[320722990,1711535438677,-387.55,0.000438,7]
[320722991,1711535438686,-155.94263344,0.00043939,13]
[320722992,1711535438696,-166.37,0.00044011,2]
[320722993,1711535438706,-560.05174371,0.00044051,2]
[320722994,1711535438715,-4511.4,0.00044093,120]
[320722995,1711535438727,-150.0,0.0004424,120]
[320722996,1711535438736,-155.01,0.000443,7]
[320722997,1711535438746,-154.78058138,0.00044311,2]
[320722998,1711535438756,-150.0,0.00044349,120]
[320722999,1711535438765,-165.34,0.000445,7]
[320723000,1711535438775,-163.85,0.00044593,2]
[320723001,1711535438785,-5073.64995356,0.00044895,20]
[320723002,1711535438795,-22038.94073476,0.00045,4]
[320723003,1711535438805,-500.0,0.00045,14]
[320723004,1711535438817,-7046.86535212,0.00045226,2]
[320723005,1711535438826,-422.95,0.00045423,15]
[320723006,1711535438836,-9908.0231828,0.000455,2]
[320723007,1711535438846,-160.0,0.00045515,120]
[320723008,1711535438855,-540.41,0.00046007,2]
[320723009,1711535438864,-154.78058138,0.00046135,2]
[320723010,1711535438873,-209.25,0.0004614,2]
[320723011,1711535438884,-387.55,0.000462,7]
[320723012,1711535438893,-560.05174371,0.00046296,2]
[320723013,1711535438903,-1010.39616778,0.00046318,2]
[320723014,1711535438913,-5073.64995356,0.00046843,22]
[320723015,1711535438923,-165.34,0.000471,7]
[320723016,1711535438932,-151.35,0.0004718,2]
[320723017,1711535438942,-318.31,0.0004718,2]
[320723018,1711535438951,-152.76,0.0004718,2]
[320723019,1711535438961,-414.82,0.0004718,2]
[320723020,1711535438971,-517.72,0.0004718,2]
[320723021,1711535438985,-517.72,0.0004718,2]
[320723022,1711535438995,-155.01,0.000472,7]
[320723023,1711535439005,-7046.86535212,0.00047215,2]
[320723024,1711535439014,-150.0,0.00047395,2]
[320723025,1711535439024,-515.86,0.00047395,2]
[320723026,1711535439034,-151.22191435,0.00047528,30]
[320723027,1711535439046,-12954.78,0.00047542,2]
[320723028,1711535439055,-9908.0231828,0.0004758,2]
[320723029,1711535439064,-164.88553698,0.00047674,30]
[320723030,1711535439074,-1199.68094201,0.00047859,2]
[320723031,1711535439083,-2373.57873939,0.00047859,2]
[320723032,1711535439093,-100000.0,0.00047919,7]
[320723033,1711535439102,-154.78058138,0.00047959,2]
[320723034,1711535439112,-560.75087012,0.00048,4]
[320723035,1711535439123,-503.6111413,0.00048,100]
[320723036,1711535439135,-163.57700477,0.0004802,30]
[320723037,1711535439145,-151.7063141,0.00048074,30]
[320723038,1711535439155,-156.81209444,0.00048126,30]
[320723039,1711535439165,-422.95,0.00048163,15]
[320723040,1711535439175,-525.99041945,0.00048253,2]
[320723041,1711535439185,-540.41,0.00048271,2]
[320723042,1711535439198,-387.55,0.000483,7]
[320723043,1711535439208,-160.07183501,0.00048316,30]
[320723044,1711535439219,-152.38573111,0.00048339,38]
[320723045,1711535439233,-190.24451948,0.00048415,30]
[320723046,1711535439243,-156.89639175,0.00048505,30]
[320723047,1711535439252,-1007.55150016,0.00048599,2]
[320723048,1711535439261,-734.82804249,0.000486,2]
[320723049,1711535439271,-155.94263344,0.0004862,32]
[320723050,1711535439282,-793.9865,0.00048635,2]
[320723051,1711535439291,-153.43825922,0.00048658,30]
[320723052,1711535439301,-2994.7016,0.00048698,2]
[320723053,1711535439311,-4250.77091699,0.00048699,4]
[320723054,1711535439320,-186.69469355,0.000487,24]
[320723055,1711535439330,-16721.08964175,0.000487,2]
[320723056,1711535439340,-1111.0,0.000487,4]
[320723057,1711535439350,-156.89639175,0.00048703,30]
[320723058,1711535439359,-5073.64995356,0.00048791,25]
[320723059,1711535439369,-18053.59407368,0.00048798,15]
[320723060,1711535439378,-165.34,0.000488,7]
[320723061,1711535439389,-209.25,0.0004888,2]
[320723062,1711535439398,-200.0,0.00049173,2]
[320723063,1711535439408,-7046.86535212,0.00049204,2]
[320723064,1711535439417,-190.24451948,0.00049229,30]
[320723065,1711535439426,-155.01870001,0.0004929,30]
[320723066,1711535439436,-158.12704685,0.00049379,30]
[320723067,1711535439446,-160.13519834,0.00049465,30]
[320723068,1711535439455,-155.01,0.000495,7]
[320723069,1711535439465,-387.55,0.000496,7]
[320723070,1711535439476,-1176.0,0.00049615,2]
[320723071,1711535439486,-11711.48,0.00049615,2]
[320723072,1711535439495,-540.285,0.00049615,2]
[320723073,1711535439505,-1046.0,0.00049615,2]
[320723074,1711535439515,-9908.0231828,0.00049661,2]
[320723075,1711535439525,-10000.0,0.00049688,30]
[320723076,1711535439534,-190.24451948,0.00049724,30]
[320723077,1711535439543,-154.78058138,0.00049782,2]
[320723078,1711535439553,-5000.0,0.0005,30]
[320723079,1711535439563,-1291.33627352,0.0005,30]
[320723080,1711535439572,-567.75368568,0.0005,30]
[320723081,1711535439581,-6511.0,0.0005,14]
[320723082,1711535439590,-163.57700477,0.00050008,60]
[320723083,1711535439600,-4000.0,0.00050137,120]
[320723084,1711535439609,-158.0359404,0.00050352,60]
[320723085,1711535439619,-190.24451948,0.00050441,60]
[320723086,1711535439630,-190.24451948,0.00050453,60]
[320723087,1711535439641,-540.41,0.00050535,2]
[320723088,1711535439651,-160.0,0.00050572,120]
[320723089,1711535439661,-165.34,0.000506,7]
[320723090,1711535439671,-4621.0,0.00050685,120]
[320723091,1711535439680,-3073.0,0.00050685,120]
[320723092,1711535439690,-3100.0,0.00050685,120]
[320723093,1711535439699,-3185.0,0.00050685,120]
[320723094,1711535439709,-5073.64995356,0.00050739,27]
[320723095,1711535439719,-190.24451948,0.00050799,60]
[320723096,1711535439730,-1336.86854357,0.0005081,4]
[320723097,1711535439741,-156.81209444,0.0005085,60]
[320723098,1711535439750,-153.12534534,0.000509,120]
[320723099,1711535439760,-153.12534523,0.000509,120]
[320723100,1711535439769,-153.12534523,0.000509,120]
[320723101,1711535439779,-153.12534523,0.000509,120]
[320723102,1711535439788,-153.12534523,0.000509,120]
[320723103,1711535439797,-153.12534523,0.000509,120]
[320723104,1711535439806,-153.12534523,0.000509,120]
[320723105,1711535439817,-153.12534523,0.000509,120]
[320723106,1711535439826,-153.12534523,0.000509,120]
[320723107,1711535439836,-153.12534523,0.000509,120]
[320723108,1711535439845,-153.12534523,0.000509,120]
[320723109,1711535439855,-153.12534523,0.000509,120]
[320723110,1711535439865,-422.95,0.00050902,120]
[320723111,1711535439874,-10000.0,0.00051,20]
[320723112,1711535439884,-43076.0,0.00051,120]
[320723113,1711535439893,-30103.0,0.00051,120]
[320723114,1711535439903,-387.55,0.00051,7]
[320723115,1711535439912,-480.2882,0.00051085,2]
[320723116,1711535439921,-1053.93053972,0.000511,30]
[320723117,1711535439930,-646.01,0.00051182,30]
[320723118,1711535439939,-167183.0125,0.00051185,2]
[320723119,1711535439949,-7046.86535212,0.00051193,2]
[320723120,1711535439958,-156.89639175,0.00051251,60]
[320723121,1711535439966,-153.23629697,0.00051338,60]
[320723122,1711535439977,-171.8647512,0.00051371,120]
[320723123,1711535439986,-341.47005721,0.00051471,2]
[320723124,1711535439995,-155.01,0.000515,7]
[320723125,1711535440004,-221.5,0.00051582,2]
[320723126,1711535440014,-221.5,0.00051596,2]
[320723127,1711535440023,-154.78058138,0.00051606,2]
[320723128,1711535440032,-221.5,0.00051609,2]
[320723129,1711535440041,-221.5,0.00051623,2]
[320723130,1711535440051,-221.5,0.00051636,2]
[320723131,1711535440060,-221.5,0.0005165,2]
[320723132,1711535440070,-156.81209444,0.00051652,60]
[320723133,1711535440079,-221.5,0.00051663,2]
[320723134,1711535440089,-221.5,0.00051677,2]
[320723135,1711535440099,-221.5,0.0005169,2]
[320723136,1711535440110,-221.5,0.00051704,2]
[320723137,1711535440121,-221.5,0.00051718,2]
[320723138,1711535440133,-221.5,0.00051731,2]
[320723139,1711535440142,-9908.0231828,0.00051741,2]
[320723140,1711535440151,-221.5,0.00051745,2]
[320723141,1711535440163,-160.13519834,0.00051745,60]
[320723142,1711535440172,-221.5,0.00051758,2]
[320723143,1711535440181,-221.5,0.00051772,2]
[320723144,1711535440192,-221.5,0.00051785,2]
[320723145,1711535440203,-221.5,0.00051799,2]
[320723146,1711535440213,-165.34,0.000518,7]
[320723147,1711535440222,-221.5,0.00051813,2]
[320723148,1711535440233,-221.5,0.00051826,2]
[320723149,1711535440242,-221.5,0.0005184,2]
[320723150,1711535440252,-156.89639175,0.00051959,60]
[320723151,1711535440263,-150.11,0.00052,120]
[320723152,1711535440272,-500.0,0.00052054,60]
[320723153,1711535440282,-500.0,0.00052054,120]
[320723154,1711535440292,-1012.01,0.00052054,2]
[320723155,1711535440302,-339.22517766,0.00052054,14]
[320723156,1711535440311,-1000.0,0.00052055,120]
[320723157,1711535440320,-1000.0,0.00052055,120]
[320723158,1711535440329,-151.22191435,0.00052067,60]
[320723159,1711535440338,-17587.0,0.000521,120]
[320723160,1711535440347,-1199.680942,0.00052236,2]
[320723161,1711535440357,-2373.57873937,0.00052236,2]
[320723162,1711535440366,-173.032719,0.00052498,85]
[320723163,1711535440375,-387.55,0.000525,30]
[320723164,1711535440384,-1362.13070533,0.00052555,4]
[320723165,1711535440394,-1086.25267969,0.00052555,4]
[320723166,1711535440403,-164.032719,0.00052598,86]
[320723167,1711535440412,-500.0,0.00052602,60]
[320723168,1711535440422,-734.82804248,0.00052606,2]
[320723169,1711535440432,-1176.0,0.00052615,120]